bitfinex-derivatives/quotes_ETHF0:USTF0_20251001
["timestamp","ask_amount","ask_price","bid_price","bid_amount"]
[1759337392171,0.9232,4336.2,4336.1,0.5423]
[1759337392365,1.403899,4336.2,4336.1,0.68482]
[1759337392568,0.4227,4336.0,4335.9,0.41483]
[1759337392771,1.568599,4336.0,4335.9,0.41483]
[1759337393176,1.568599,4336.0,4335.9,0.27]
[1759337393479,1.568599,4336.0,4335.8,0.41485]
[1759337393672,1.375299,4335.9,4335.8,0.41485]
[1759337394379,1.375299,4335.9,4335.8,0.68355]
[1759337394574,0.377,4335.8,4335.6,40.8]
[1759337394775,0.857699,4335.7,4335.6,40.8]
[1759337394983,0.8946,4335.6,4335.5,0.41487]
[1759337395179,1.375299,4335.6,4335.5,0.68357]
[1759337395580,1.375299,4335.6,4335.5,0.93117]
[1759337395882,1.375299,4335.6,4335.5,0.2687]
[1759337396075,1.375299,4335.6,4335.4,0.68358]
[1759337396076,1.0463,4335.5,4335.4,0.68358]
[1759337396272,0.377,4335.4,4335.3,41.21489]
[1759337396478,0.857699,4335.4,4335.3,41.21489]
[1759337397080,0.857699,4335.4,4335.3,41.61759]
[1759337398079,0.857699,4335.4,4335.3,41.2027]
[1759337398279,0.857699,4335.4,4335.3,40.8]
[1759337398783,0.8946,4335.3,4335.2,0.68631823]
[1759337398977,1.375299,4335.3,4335.2,1.33661823]
[1759337399371,1.375299,4335.3,4335.2,0.51901823]
[1759337399686,1.375299,4335.3,4335.2,0.00271823]
[1759337402784,6.375299,4335.3,4335.2,0.00271823]
[1759337403882,6.613299,4335.3,4335.2,0.00271823]
[1759337404088,6.375299,4335.3,4335.2,0.00271823]
[1759337404281,1.375299,4335.3,4335.2,0.00271823]
[1759337404887,1.375299,4335.3,4335.2,0.27141823]
[1759337405385,1.375299,4335.3,4335.2,0.51901823]
[1759337405581,1.375299,4335.3,4335.2,0.92171823]
[1759337405889,0.480699,4335.3,4335.2,0.92171823]
[1759337406081,0.6396,4335.6,4335.5,1.33388]
[1759337406277,1.37485291,4335.6,4335.5,0.5163]
[1759337406481,1.37485291,4335.6,4335.2,0.00271823]
[1759337406679,0.1647,4336.0,4335.2,0.00271823]
[1759337406680,0.8946,4335.3,4335.2,0.00271823]
[1759337406988,1.37485291,4335.3,4335.2,0.00271823]
[1759337410582,1.37485291,4335.3,4333.8,0.4027]
[1759337410774,1.37485291,4335.3,4333.4,0.68378]
[1759337410775,1.0463,4333.5,4333.4,0.68378]
[1759337410980,1.52655291,4333.5,4333.4,0.68378]
[1759337411276,1.52655291,4333.5,4333.4,0.2687]
[1759337411680,1.52655291,4333.5,4333.4,0.00221777]
[1759337411681,1.529509,4333.5,4333.4,0.00221777]
[1759337413185,3.36286383,4333.5,4333.4,0.00221777]
[1759337413491,1.529509,4333.5,4333.4,0.00221777]
[1759337414183,1.529509,4333.5,4333.4,0.51851777]
[1759337414385,1.529509,4333.5,4333.4,0.92121777]
[1759337414386,1.377809,4333.5,4333.4,0.92121777]
[1759337414785,1.529509,4333.5,4333.4,0.51851777]
[1759337415183,1.529509,4333.5,4333.4,0.00221777]
[1759337417590,1.767509,4333.5,4333.4,0.00221777]
[1759337418583,0.5176,4332.9,4332.4,0.4027]
[1759337418785,0.8946,4332.7,4332.6,0.68385]
[1759337418986,0.8946,4332.7,4332.6,1.33415]
[1759337419191,0.8946,4332.7,4332.6,41.73145]
[1759337419486,0.8946,4332.7,4332.6,0.93145]
[1759337419691,0.8946,4332.7,4332.6,0.41786351]
[1759337419995,0.8946,4332.7,4332.6,0.68656351]
[1759337420594,1.37338105,4332.7,4332.6,0.93416351]
[1759337420794,0.8946,4332.7,4332.6,0.93416351]
[1759337420995,0.8946,4332.7,4332.6,1.33686351]
[1759337421689,0.8946,4332.7,4332.6,0.93416351]
[1759337421883,0.8946,4332.7,4332.6,1.33686351]
[1759337422089,1.37356859,4332.7,4332.6,1.33686351]
[1759337422289,0.6396,4333.0,4332.9,1.33413]
[1759337422690,0.8946,4333.0,4332.9,1.33413]
[1759337423399,1.0533,4333.0,4332.9,1.33413]
[1759337423696,1.0533,4333.0,4332.6,0.00271351]
[1759337423697,1.53236366,4333.0,4332.6,0.00271351]
[1759337423897,1.53236366,4333.0,4332.6,0.41786351]
[1759337423898,0.9112,4332.7,4332.6,0.41786351]
[1759337424098,1.3903638,4332.7,4332.6,0.67166351]
[1759337424302,1.3903638,4332.7,4332.6,0.00271351]
[1759337426400,0.2474,4331.6,4331.5,1.29016]
[1759337426598,0.2474,4331.6,4331.5,0.91406]
[1759337426599,0.9112,4331.6,4331.5,0.91406]
[1759337426900,0.9112,4331.6,4331.5,41.71406]
[1759337427097,0.9112,4331.6,4331.5,42.09016]
[1759337427300,0.9112,4331.6,4331.5,42.09261081]
[1759337427601,0.9112,4331.6,4331.5,1.29261081]
[1759337428095,0.6638,4331.6,4331.5,1.29261081]
[1759337428296,1.0609,4332.0,4331.5,0.00245081]
[1759337428491,0.47910186,4331.9,4331.5,0.00245081]
[1759337428691,0.9112,4331.6,4331.5,0.00245081]
[1759337428999,1.39030186,4331.6,4331.5,0.00245081]
[1759337429503,1.39027945,4331.6,4331.5,0.00245081]
[1759337434108,1.39027945,4331.6,4331.5,0.41771081]
[1759337435702,1.39027945,4331.6,4331.5,0.67151081]
[1759337436105,1.39027945,4331.6,4331.5,0.41771081]
[1759337436297,1.39027945,4331.6,4331.5,0.00245081]
[1759337436497,1.39027945,4331.6,4331.5,0.41771081]
[1759337438812,1.39027945,4331.6,4331.5,1.29261081]
[1759337439309,0.47907945,4331.6,4331.5,6.44411081]
[1759337439608,0.3987,4332.4,4332.3,0.41518]
[1759337439810,1.0699,4333.0,4332.9,0.41513]
[1759337440213,1.0699,4333.0,4332.9,0.66893]
[1759337440410,1.0699,4333.0,4332.9,0.41513]
[1759337440713,1.0699,4333.0,4332.9,1.29003]
[1759337441110,1.0699,4333.0,4332.9,0.91393]
[1759337441716,1.0699,4333.0,4332.9,0.2538]
[1759337442013,1.0699,4333.0,4332.1,41.838]
[1759337442014,1.0699,4333.0,4332.2,1.03799]
[1759337442214,0.6461,4332.4,4332.3,1.29008]
[1759337442921,0.9112,4332.4,4332.3,1.29008]
[1759337444910,0.1587,4333.0,4332.9,0.91393]
[1759337444911,0.6712,4333.0,4332.9,0.91393]
[1759337445312,0.6712,4333.0,4332.9,1.29003]
[1759337445616,1.0699,4333.0,4332.9,0.91393]
[1759337445818,1.0699,4333.0,4332.9,0.66893]
[1759337446114,1.0699,4333.0,4332.9,0.2538]
[1759337446319,0.5125,4332.8,4332.7,0.41514]
[1759337446511,0.9112,4332.8,4332.7,0.41514]
[1759337447216,0.9112,4332.2,4332.1,1.0451]
[1759337447421,0.9112,4332.2,4332.1,1.2901]
[1759337448313,0.1497,4332.5,4332.4,0.41517]
[1759337448612,0.1497,4332.5,4332.4,1.29007]
[1759337448613,0.2474,4332.5,4332.4,1.29007]
[1759337448808,1.0699,4333.0,4332.9,0.91393]
[1759337449014,0.00295609,4333.5,4333.4,1.28998]
[1759337450917,0.00295609,4333.5,4333.4,6.28998]
[1759337451314,0.00295609,4333.5,4333.4,1.28998]
[1759337451522,0.00295609,4333.5,4333.4,1.52798]
[1759337451723,0.91415609,4333.5,4333.4,1.52798]
[1759337452017,1.39263038,4333.5,4333.4,42.32798]
[1759337453221,0.91415609,4333.5,4333.4,42.32798]
[1759337454816,1.07035609,4333.5,4333.4,42.32798]
[1759337455017,1.07035609,4333.5,4333.4,41.46888]
[1759337455214,0.3631,4333.4,4332.7,1.03787]
[1759337455419,0.8507,4332.8,4332.7,0.66075]
[1759337455622,0.72158061,4332.8,4332.7,1.27235]
[1759337456014,0.96568061,4332.8,4332.7,0.90795]
[1759337456220,1.32878061,4332.8,4332.7,0.66075]
[1759337457419,0.47808061,4332.8,4332.7,1.27235]
[1759337457623,0.96576688,4333.1,4333.0,0.66072]
[1759337458223,1.32886688,4333.1,4333.0,0.66072]
[1759337459523,1.32886688,4333.1,4333.0,0.90792]
[1759337459826,1.32886688,4333.1,4333.0,1.27232]
[1759337460821,1.32886688,4333.1,4332.5,0.238]
[1759337461021,0.8507,4332.6,4332.5,0.41517]
[1759337461226,1.32886688,4332.6,4332.0,0.3644]
[1759337461424,0.8507,4332.1,4332.0,0.66081]
[1759337461619,1.32886688,4332.1,4332.0,0.90801]
[1759337461824,0.47816688,4332.1,4332.0,1.42061]
[1759337462028,0.6066,4332.4,4332.3,1.27239]
[1759337462234,1.32917189,4332.4,4332.3,0.90799]
[1759337464428,1.08507189,4332.4,4332.3,0.90799]
[1759337464632,0.47847189,4332.4,4332.3,6.27239]
[1759337464829,1.08507189,4332.4,4332.3,1.27239]
[1759337465035,1.32917189,4332.4,4332.3,0.8572]
[1759337465234,1.32917189,4332.4,4332.3,1.27239]
[1759337465432,1.08507189,4332.4,4332.3,1.27239]
[1759337465728,0.3631,4332.9,4332.8,1.27234]
[1759337466037,1.32882984,4332.9,4332.3,0.3644]
[1759337466330,0.4876,4332.2,4332.1,0.6608]
[1759337466535,1.32882984,4332.2,4332.1,0.6608]
[1759337466924,1.32882984,4332.2,4332.1,0.2456]
[1759337467128,1.0069,4332.0,4331.9,0.41522]
[1759337467333,1.48502984,4332.0,4331.9,0.41522]
[1759337467534,1.48502984,4332.0,4331.9,0.66082]
[1759337468631,1.48502984,4332.0,4331.9,0.2456]
[1759337469129,1.48502984,4332.0,4331.5,0.00245081]
[1759337469328,0.8507,4331.6,4331.5,0.00245081]
[1759337469535,1.32882984,4331.6,4331.5,0.00245081]
[1759337470931,0.47812984,4331.6,4331.5,1.00895081]
[1759337471140,1.0069,4332.0,4331.9,0.4928]
[1759337471336,1.0069,4332.0,4331.5,0.00245081]
[1759337471337,1.48550261,4332.0,4331.5,0.00245081]
[1759337471536,1.48550261,4332.0,4331.8,0.8572]
[1759337471537,1.32930261,4331.9,4331.8,0.8572]
[1759337471927,1.32930261,4331.9,4331.8,1.27243]
[1759337472134,0.47860261,4331.9,4331.8,1.27243]
[1759337472334,0.6066,4332.3,4332.2,0.8572]
[1759337472540,1.32918845,4332.3,4332.2,0.8572]
[1759337474138,1.32918845,4332.3,4331.5,0.15175081]
[1759337474139,0.8507,4331.6,4331.5,0.24805081]
[1759337474336,1.32918845,4331.6,4331.5,0.85965081]
[1759337474933,1.32918845,4331.6,4331.5,0.49525081]
[1759337475328,1.32918845,4331.6,4331.5,0.00245081]
[1759337477930,1.32918845,4331.6,4331.5,0.24805081]
[1759337478331,1.74443845,4331.6,4331.5,0.24805081]
[1759337478534,1.74443845,4331.6,4331.5,0.00245081]
[1759337480340,0.47848845,4331.6,4331.5,0.97715081]
[1759337480540,0.3751,4331.9,4331.5,0.62615081]
[1759337480736,1.28302,4331.9,4331.8,0.8245]
[1759337480936,0.8678,4331.6,4331.5,0.24195081]
[1759337481339,1.76129388,4331.6,4331.5,0.00245081]
[1759337485036,0.47824388,4331.6,4331.5,1.40301081]
[1759337485538,0.2438,4332.0,4331.9,0.78532]
[1759337485736,1.09166737,4332.0,4331.9,1.27632]
[1759337485939,0.47876737,4332.0,4331.9,1.27632]
[1759337486246,1.09166737,4332.0,4331.9,1.27632]
[1759337487339,0.72256737,4332.0,4331.9,1.27632]
[1759337487541,0.2438,4332.7,4332.6,0.41515]
[1759337487835,0.2438,4332.7,4332.6,1.27625]
[1759337487836,1.09181274,4332.7,4332.6,1.27625]
[1759337488035,1.32641274,4332.7,4332.6,0.8611]
[1759337488236,1.32641274,4332.7,4332.6,0.491]
[1759337489844,0.8475,4332.3,4332.2,0.8611]
[1759337490047,1.32641274,4332.3,4332.2,0.8611]
[1759337490548,0.6129,4332.7,4332.6,0.8611]
[1759337490751,1.50690934,4332.7,4332.6,0.8611]
[1759337491150,1.09175934,4332.7,4332.6,0.8611]
[1759337491450,1.74150934,4332.7,4332.6,0.491]
[1759337491949,1.74150934,4332.7,4332.6,0.245]
[1759337492149,0.4784,4332.4,4332.3,0.90618]
[1759337492458,1.32635934,4332.4,4332.3,1.27628]
[1759337493250,1.32635934,4332.4,4332.3,0.90618]
[1759337493451,1.32635934,4332.4,4332.3,1.27628]
[1759337493847,0.47885934,4332.4,4332.3,1.27628]
[1759337494255,0.2438,4332.8,4332.7,1.03125]
[1759337494449,0.2438,4332.8,4332.3,40.8]
[1759337494450,1.40957,4332.5,4332.4,0.245]
[1759337494654,1.88751572,4332.5,4332.4,0.245]
[1759337494952,1.47234572,4332.5,4332.4,1.27628]
[1759337495453,1.88751572,4332.5,4332.4,1.27628]
[1759337495950,1.47234572,4332.5,4332.4,1.27628]
[1759337496854,0.41518,4332.4,4332.3,40.8]
[1759337497049,0.41518,4332.4,4332.3,0.8611]
[1759337497050,1.09084572,4332.4,4332.3,0.8611]
[1759337497347,1.74062572,4332.4,4332.3,0.491]
[1759337497548,1.32544572,4332.4,4332.3,0.90619]
[1759337497744,1.32544572,4332.4,4332.3,1.27629]
[1759337498148,1.32544572,4332.4,4332.3,0.90619]
[1759337498349,1.32544572,4332.4,4332.3,0.66019]
[1759337501154,1.32544572,4332.4,4332.3,0.41519]
[1759337501354,1.32544572,4332.4,4332.3,0.90619]
[1759337502161,0.47794572,4332.4,4332.3,1.51329]
[1759337502854,0.72174572,4332.4,4332.3,1.51329]
[1759337503051,1.32544572,4332.4,4332.3,1.14319]
[1759337503647,0.95634572,4332.4,4331.6,4.24594]
[1759337503853,0.8475,4332.1,4332.0,0.41521]
[1759337504053,1.32544572,4332.1,4332.0,0.41521]
[1759337504552,1.32544572,4332.1,4332.0,0.41521]
[1759337504752,1.74065572,4332.1,4332.0,0.41521]
[1759337504957,1.32544572,4332.1,4332.0,0.41521]
[1759337505154,1.32544572,4332.1,4332.0,1.27631]
[1759337505462,0.8475,4332.1,4332.0,0.90621]
[1759337505661,1.32520324,4332.1,4332.0,0.66021]
[1759337506360,0.8475,4332.1,4332.0,1.27631]
[1759337507151,3.2078,4332.3,4332.2,0.4152]
[1759337507466,0.4784,4332.3,4332.2,1.2763]
[1759337507855,0.8475,4332.3,4332.2,0.9062]
[1759337508062,0.8475,4332.1,4332.0,0.89721]
[1759337508257,1.26271,4332.1,4332.0,0.66021]
[1759337508652,0.80592,4332.0,4331.9,0.237]
[1759337508862,1.88759076,4332.0,4331.9,0.237]
[1759337509559,1.26275,4331.6,4331.5,3.21025081]
[1759337509763,1.26275,4331.6,4331.5,0.00245081]
[1759337509962,1.74079546,4331.6,4331.5,0.00245081]
[1759337510756,0.3691,4332.9,4332.8,0.245]
[1759337510958,0.6129,4333.4,4333.3,0.491]
[1759337511159,0.6129,4333.4,4333.3,0.8611]
[1759337511363,0.6129,4333.4,4333.3,41.291]
[1759337512060,0.6129,4333.4,4333.3,41.6611]
[1759337513566,0.00295609,4333.5,4333.4,0.41508]
[1759337513767,0.23455609,4333.5,4333.4,1.25498]
[1759337513963,0.58275609,4333.5,4333.4,1.25498]
[1759337515978,0.3482,4333.4,4333.3,41.037]
[1759337516468,0.3482,4333.4,4333.3,41.45209]
[1759337516667,0.3482,4333.4,4333.3,41.79869]
[1759337517569,0.00295609,4333.5,4333.4,0.8399]
[1759337517964,0.00295609,4333.5,4333.4,4.0477]
[1759337518165,0.83755609,4333.5,4333.4,4.0477]
[1759337518757,0.98995609,4333.5,4333.4,3.9381]
[1759337518962,0.98995609,4333.5,4333.4,0.7303]
[1759337522873,0.98995609,4333.5,4333.4,1.14538]
[1759337523068,0.98995609,4333.5,4333.4,0.4752]
[1759337523372,1.40502609,4333.5,4333.4,0.237]
[1759337523675,0.8346,4333.1,4332.9,3.2078]
[1759337523876,1.40212,4333.0,4332.9,3.2078]
[1759337524070,1.40212,4333.0,4332.9,3.683]
[1759337524373,0.23455609,4333.5,4333.4,1.25498]
[1759337524560,0.23455609,4333.5,4333.4,1.49198]
[1759337524969,0.58275609,4333.5,4333.4,1.49198]
[1759337525365,0.58275609,4333.5,4333.4,1.0769]
[1759337525571,1.87594567,4333.5,4333.4,1.49198]
[1759337525871,1.87594567,4333.5,4333.4,0.7303]
[1759337526278,1.40502609,4333.5,4333.4,0.7303]
[1759337526671,1.87592037,4333.5,4333.4,0.7303]
[1759337527174,1.87592037,4333.5,4333.4,1.14538]
[1759337527475,1.87592037,4333.5,4333.4,0.7303]
[1759337528470,0.41512,4333.0,4332.9,3.2078]
[1759337528672,1.40217,4332.5,4332.4,3.2078]
[1759337529076,1.40217,4332.5,4332.4,3.683]
[1759337529374,1.40217,4332.5,4332.4,0.237]
[1759337529674,1.87318102,4332.5,4332.4,0.237]
[1759337529981,0.8346,4332.1,4332.0,0.90851]
[1759337530173,0.8346,4332.1,4332.0,0.7303]
[1759337530478,1.24981,4332.1,4332.0,0.237]
[1759337530870,1.72085554,4332.1,4332.0,0.237]
[1759337531576,1.72085554,4332.1,4332.0,0.4752]
[1759337531881,1.30564554,4332.1,4332.0,1.0769]
[1759337532074,0.41518,4332.4,4332.0,0.7215]
[1759337532273,1.24978,4332.4,4332.3,0.2382]
[1759337532474,1.72072482,4332.4,4332.3,1.0769]
[1759337532673,1.72072482,4332.4,4332.3,0.7303]
[1759337534175,0.2316,4332.8,4332.7,0.65335]
[1759337534376,0.7322,4333.0,4332.9,0.90843]
[1759337534568,1.05067926,4333.0,4332.9,1.25503]
[1759337534774,1.30547926,4333.0,4332.9,0.8399]
[1759337535574,0.70247926,4333.0,4332.9,0.8399]
[1759337536483,1.45787926,4333.0,4332.9,0.4933]
[1759337537174,0.8346,4332.8,4332.7,0.4752]
[1759337537375,1.30547926,4332.8,4332.7,1.0769]
[1759337537777,0.70247926,4332.8,4332.7,1.49205]
[1759337538383,0.47087926,4332.8,4332.7,1.49205]
[1759337538581,0.5798,4333.2,4333.1,0.90841]
[1759337538772,1.05092761,4333.2,4333.1,1.25501]
[1759337538971,0.70272761,4333.2,4333.1,1.49201]
[1759337539171,0.47112761,4333.2,4333.1,1.49201]
[1759337539376,0.00295609,4333.5,4333.1,1.49201]
[1759337539377,0.00295609,4333.5,4333.4,1.25498]
[1759337539577,0.00295609,4333.5,4333.4,1.49198]
[1759337539777,0.00295609,4333.5,4333.4,6.49198]
[1759337540277,0.00295609,4333.5,4333.4,9.69978]
[1759337541485,0.00295609,4333.5,4333.4,50.49978]
[1759337541777,0.993,4334.5,4334.4,0.65019]
[1759337541978,1.31181569,4334.5,4334.4,1.25669]
[1759337542583,1.45661569,4334.5,4334.4,0.65019]
[1759337542771,1.4591027,4334.5,4334.4,0.65019]
[1759337543174,1.4591027,4334.5,4334.4,0.2352]
[1759337545482,1.4591027,4334.5,4334.4,0.8233]
[1759337545886,1.4591027,4334.5,4334.4,0.4692]
[1759337546588,1.4591027,4334.5,4334.4,0.2352]
[1759337547479,0.352,4334.4,4334.3,0.65199]
[1759337547681,0.352,4334.4,4334.3,0.237]
[1759337547682,1.30411569,4334.4,4334.3,0.237]
[1759337548378,1.30411569,4334.4,4334.3,0.652]
[1759337548780,1.71910569,4334.4,4334.3,0.652]
[1759337549189,1.71910569,4334.4,4334.3,0.237]
[1759337549484,0.8329,4333.8,4333.7,3.4589]
[1759337549684,0.8329,4333.8,4333.7,3.62285]
[1759337549886,0.352,4333.4,4333.3,0.41509]
[1759337550181,0.8329,4333.4,4333.3,0.41509]
[1759337550689,1.24798,4333.4,4333.3,0.41509]
[1759337550887,0.4151,4333.3,4333.1,3.4448]
[1759337551191,0.8329,4333.2,4333.1,4.11101]
[1759337551389,0.8329,4333.2,4333.1,4.69491]
[1759337551586,4.45568,4334.4,4334.3,0.41499]
[1759337551890,1.2479,4334.2,4334.1,0.237]
[1759337552387,1.2479,4334.2,4334.1,0.4881]
[1759337552589,1.2479,4334.2,4334.1,0.90311]
[1759337552785,1.71827897,4334.2,4334.1,0.90311]
[1759337552989,1.2479,4334.2,4334.1,0.90311]
[1759337554093,0.8329,4334.2,4334.1,0.90311]
[1759337554794,1.24791,4334.2,4334.1,0.90311]
[1759337555489,1.24791,4334.2,4334.1,1.48701]
[1759337555792,1.24791,4334.2,4334.1,0.7179]
[1759337556189,1.24791,4334.2,4334.1,1.13292]
[1759337557495,1.24791,4334.2,4334.1,0.90312]
[1759337560494,0.5818,4334.2,4334.1,1.48702]
[1759337560797,1.39516701,4334.5,4334.4,0.89589]
[1759337561289,1.86564715,4334.5,4334.4,0.89589]
[1759337561486,1.86564715,4334.5,4334.4,0.4809]
[1759337561686,0.8329,4334.3,4334.2,0.2511]
[1759337562089,1.2479,4334.3,4334.2,0.66611]
[1759337562998,1.2479,4334.3,4334.2,1.25001]
[1759337562999,0.8329,4334.3,4334.2,1.25001]
[1759337563292,1.2479,4334.3,4334.2,0.4809]
[1759337563496,0.89591,4334.2,4334.1,0.237]
[1759337563795,1.24791,4334.2,4334.1,0.237]
[1759337565393,1.24794,4333.9,4333.8,0.66614]
[1759337565590,1.24793,4333.9,4333.8,0.90314]
[1759337565892,1.24793,4333.9,4333.8,1.48704]
[1759337566284,1.71936132,4333.9,4333.8,1.48704]
[1759337566487,1.71936132,4333.9,4333.8,1.13294]
[1759337568292,1.11626132,4333.9,4333.8,1.48704]
[1759337568901,1.46826132,4333.9,4333.8,1.48704]
[1759337569097,1.05323132,4333.9,4333.8,1.48704]
[1759337569297,0.47143132,4333.9,4333.8,1.48704]
[1759337570995,0.352,4334.2,4334.1,0.41501]
[1759337571201,1.05382453,4334.2,4334.1,1.25001]
[1759337572401,1.30487789,4334.2,4334.1,1.25001]
[1759337572601,1.30487789,4334.2,4334.1,42.05001]
[1759337573101,1.30487789,4334.2,4334.1,41.70311]
[1759337573700,1.71988789,4334.2,4334.1,41.70311]
[1759337573900,1.30487789,4334.2,4334.1,42.05441]
[1759337574194,1.71988789,4334.2,4334.1,42.05441]
[1759337574395,1.71988789,4334.2,4334.1,41.70311]
[1759337574699,1.71988789,4334.2,4334.1,42.05441]
[1759337574900,1.71988789,4334.2,4334.1,41.70311]
[1759337575400,1.71988789,4334.2,4334.1,41.46611]
[1759337575594,1.71988789,4334.2,4334.1,41.70311]
[1759337576194,1.71988789,4334.2,4334.1,0.4881]
[1759337576589,1.30487789,4334.2,4334.1,0.90311]
[1759337577198,1.71988789,4334.2,4334.1,0.66611]
[1759337577400,1.71988789,4334.2,4334.1,0.90311]
[1759337577596,1.71988789,4334.2,4334.1,0.4881]
[1759337577796,0.89522,4334.1,4334.0,0.41502]
[1759337578001,1.73269789,4334.1,4334.0,0.65202]
[1759337578902,1.73269789,4334.1,4334.0,0.87842]
[1759337579594,1.73269789,4334.1,4334.0,0.4634]
[1759337580200,1.73269789,4334.1,4334.0,0.237]
[1759337580401,1.73269789,4334.1,4334.0,0.706]
[1759337580699,1.73269789,4334.1,4334.0,1.12102]
[1759337581102,1.73269789,4334.1,4334.0,0.706]
[1759337581801,1.73269789,4334.1,4334.0,0.237]
[1759337582002,1.73269789,4334.1,4334.0,0.4634]
[1759337582196,1.73269789,4334.1,4334.0,1.12102]
[1759337582396,1.73269789,4334.1,4334.0,1.47232]
[1759337582702,1.73269789,4334.1,4334.0,1.0573]
[1759337582903,1.73269789,4334.1,4334.0,0.706]
[1759337583298,1.73269789,4334.1,4334.0,0.4634]
[1759337583895,1.73269789,4334.1,4334.0,1.0573]
[1759337584097,1.73269789,4334.1,4334.0,0.706]
[1759337584298,1.73269789,4334.1,4334.0,1.0573]
[1759337584498,1.73269789,4334.1,4334.0,1.47232]
[1759337585906,1.73269789,4334.1,4334.0,0.706]
[1759337586206,1.73269789,4334.1,4334.0,0.2264]
[1759337586506,1.73269789,4334.1,4334.0,0.4634]
[1759337586803,1.40522,4334.0,4333.9,0.41503]
[1759337587001,1.87719789,4334.0,4333.9,0.65203]
[1759337587403,1.87719789,4334.0,4333.9,0.41503]
[1759337587594,1.87719789,4334.0,4333.9,0.87843]
[1759337587799,1.87719789,4334.0,4333.9,1.47233]
[1759337588808,1.73269789,4334.0,4333.9,1.47233]
[1759337589007,0.47197789,4334.0,4333.9,1.47233]
[1759337589203,0.3655,4334.2,4334.1,1.23531]
[1759337589408,0.47256132,4334.4,4334.2,0.3513]
[1759337589602,0.00248701,4334.5,4334.4,1.23529]
[1759337589908,0.47503159,4334.5,4334.4,1.23529]
[1759337590208,0.47503159,4334.5,4334.4,6.23529]
[1759337590509,0.00248701,4334.5,4334.4,6.23529]
[1759337590910,0.00248701,4334.5,4334.4,47.03529]
[1759337594815,0.00248701,4334.5,4334.4,42.03529]
[1759337602517,0.9916,4335.3,4335.2,1.22791]
[1759337602821,1.2262,4335.3,4335.2,1.05]
[1759337603322,1.2262,4335.3,4335.2,0.6905]
[1759337603623,1.22848415,4335.3,4335.2,0.6923564]
[1759337604418,1.22848415,4335.3,4335.2,0.0018564]
[1759337604614,1.22848415,4335.3,4335.2,0.2388564]
[1759337605511,6.69595666,4335.3,4335.2,0.2388564]
[1759337614329,6.22848415,4335.3,4335.2,0.2388564]
[1759337616435,6.22848415,4335.3,4335.2,0.4681564]
[1759337616638,6.22848415,4335.3,4335.2,0.2388564]
[1759337616936,1.22848415,4335.3,4335.2,0.4681564]
[1759337617432,1.22848415,4335.3,4335.2,0.2388564]
[1759337617831,1.22848415,4335.3,4335.2,0.8250564]
[1759337618034,1.22848415,4335.3,4335.2,4.6767664]
[1759337618035,0.57898415,4335.3,4335.2,4.6767664]
[1759337618336,0.00228415,4335.3,4335.2,5.50467801]
[1759337618633,0.58478415,4335.3,4335.2,5.50467801]
[1759337619338,0.58478415,4335.3,4335.2,4.6767664]
[1759337619541,0.00228415,4335.3,4335.2,4.6767664]
[1759337620938,0.58478415,4335.3,4335.2,4.6767664]
[1759337623045,0.00228415,4335.3,4335.2,4.6767664]
[1759337623445,0.34498415,4335.3,4335.2,4.6767664]
[1759337623743,0.58478415,4335.3,4335.2,4.6767664]
[1759337623946,0.58478415,4335.3,4335.2,5.5059332]
[1759337625549,0.34498415,4335.3,4335.2,4.6767664]
[1759337626448,0.58478415,4335.3,4335.2,4.6767664]
[1759337628254,0.99968415,4335.3,4335.2,4.6767664]
[1759337628443,0.58478415,4335.3,4335.2,4.6767664]
[1759337628648,0.00228415,4335.3,4335.2,4.6767664]
[1759337629450,0.75988415,4335.3,4335.2,4.6767664]
[1759337629651,0.34498415,4335.3,4335.2,4.6767664]
[1759337630548,0.99968415,4335.3,4335.2,4.6767664]
[1759337630848,1.22728415,4335.3,4335.2,0.2311564]
[1759337631053,0.81238415,4335.3,4335.2,0.8830664]
[1759337631253,1.22728415,4335.3,4335.2,0.2388564]
[1759337631453,1.22728415,4335.3,4335.2,0.0018564]
[1759337631655,1.22728415,4335.3,4335.2,0.2388564]
[1759337636153,1.20744,4334.9,4334.8,0.2347]
[1759337636455,1.20744,4334.9,4334.8,0.8143]
[1759337636655,1.20744,4334.9,4334.8,1.45305]
[1759337637059,1.20744,4334.9,4334.8,0.69782404]
[1759337637451,1.20744,4334.9,4334.8,0.47402404]
[1759337638353,1.20744,4334.9,4334.8,0.23932404]
[1759337639354,1.20744,4334.9,4334.8,0.47402404]
[1759337641661,1.20744,4334.9,4334.8,0.23932404]
[1759337641952,1.20744,4334.9,4334.8,0.00232404]
[1759337644450,1.67421712,4334.9,4334.8,0.00232404]
[1759337645950,1.25927712,4334.9,4334.3,0.236]
[1759337646158,1.20749,4334.4,4334.3,0.236]
[1759337646357,1.67426712,4334.4,4334.3,0.15586382]
[1759337646559,0.88435,4333.7,4333.6,3.2078]
[1759337646761,1.20755,4333.7,4333.6,3.4438]
[1759337646962,1.67385898,4333.7,4333.6,3.4438]
[1759337647266,1.67385898,4333.7,4333.6,3.44607786]
[1759337647459,1.20755,4333.7,4333.6,0.23827786]
[1759337647764,1.20755,4333.7,4333.6,0.00227786]
[1759337648166,1.67357272,4333.7,4333.6,0.00227786]
[1759337648359,0.7925,4332.7,4332.6,3.6663]
[1759337648559,0.7925,4332.7,4332.6,3.9023]
[1759337648760,0.7925,4332.7,4332.6,4.2449]
[1759337649366,0.7925,4332.7,4332.6,4.24754035]
[1759337649567,0.7925,4332.7,4332.6,3.90494035]
[1759337649767,0.7925,4332.7,4332.6,0.69714035]
[1759337650064,0.7925,4332.7,4332.6,0.47334035]
[1759337651764,0.5576,4332.7,4332.6,1.03974035]
[1759337652065,1.20758,4333.4,4333.3,0.8011]
[1759337652365,1.20758,4333.4,4333.3,1.0371]
[1759337652562,1.20758,4333.4,4333.3,0.236]
[1759337652765,0.7925,4332.7,4331.7,0.3426]
[1759337653068,0.7925,4331.8,4331.7,1.0371]
[1759337653656,0.7925,4331.8,4331.7,0.6945]
[1759337653861,0.79542029,4331.8,4331.7,0.23872313]